bitfinex/quotes_SOLUSD_20250705
["timestamp","ask_amount","ask_price","bid_price","bid_amount"]
[1751706517701,5.03923658,147.36,147.33,10.64027375]
[1751706517906,5.03923658,147.35,147.33,10.64027375]
[1751706518096,5.03923658,147.36,147.33,6.78728164]
[1751706518414,5.03923658,147.35,147.33,10.64027375]
[1751706518615,3.85299211,147.37,147.33,10.64027375]
[1751706518803,5.04160375,147.36,147.33,10.64027375]
[1751706518998,5.04160375,147.35,147.33,10.64027375]
[1751706519208,3.85299211,147.37,147.33,10.64027375]
[1751706519420,5.04228317,147.36,147.33,10.64027375]
[1751706519709,5.04228317,147.35,147.33,10.64027375]
[1751706519916,3.85299211,147.37,147.33,6.78728164]
[1751706520130,5.04228125,147.36,147.33,6.78728164]
[1751706520292,5.04228125,147.35,147.33,6.78728164]
[1751706520493,3.85299211,147.37,147.33,6.78728164]
[1751706520722,5.04306919,147.36,147.33,6.78728164]
[1751706520923,5.04306919,147.35,147.33,6.78728164]
[1751706521093,3.85299211,147.37,147.33,6.78728164]
[1751706521296,5.04307056,147.36,147.33,6.78728164]
[1751706521495,5.04307056,147.35,147.33,6.78728164]
[1751706521702,3.85299211,147.37,147.33,6.78728164]
[1751706521926,5.04397349,147.36,147.33,6.78728164]
[1751706522097,5.04397349,147.35,147.33,6.78728164]
[1751706522426,3.85299211,147.37,147.33,6.78728164]
[1751706522629,5.04498983,147.36,147.33,6.78728164]
[1751706522833,5.04498983,147.35,147.33,6.78728164]
[1751706523030,3.85299211,147.37,147.33,6.78728164]
[1751706523203,5.04485563,147.36,147.33,6.78728164]
[1751706523403,5.04485563,147.35,147.33,6.78728164]
[1751706523631,3.85299211,147.37,147.33,6.78728164]
[1751706523806,5.0461555,147.36,147.33,6.78728164]
[1751706524014,5.0461555,147.35,147.33,6.78728164]
[1751706524212,3.85299211,147.37,147.33,6.78728164]
[1751706524432,5.04734742,147.36,147.33,6.78728164]
[1751706524613,5.04734742,147.35,147.33,6.78728164]
[1751706524836,3.85299211,147.37,147.33,6.78728164]
[1751706525015,5.04749681,147.36,147.33,6.78728164]
[1751706525216,5.04749681,147.35,147.33,6.78728164]
[1751706525527,5.04749681,147.34,147.33,6.78728164]
[1751706529236,5.04749681,147.34,147.33,10.64027375]
[1751706530133,12.00397105,147.38,147.33,27.60898344]
[1751706530307,5.05481046,147.37,147.35,3.85299211]
[1751706530506,5.05481046,147.36,147.35,3.85299211]
[1751706530818,5.05481046,147.36,147.35,29.85299211]
[1751706531334,5.05481046,147.36,147.35,36.63955471]
[1751706534748,5.05481046,147.36,147.35,32.7865626]
[1751706534951,5.05481046,147.36,147.35,36.63955471]
[1751706542943,5.05481046,147.36,147.35,32.7865626]
[1751706545053,5.05481046,147.36,147.35,26.0]
[1751706545342,5.05481046,147.36,147.35,32.7865626]
[1751706551641,5.05481046,147.36,147.31,23.7594189]
[1751706551844,5.05481046,147.35,147.31,27.61241101]
[1751706552048,5.05481046,147.34,147.31,27.61241101]
[1751706552352,5.05481046,147.33,147.31,53.61241101]
[1751706552544,3.85299211,147.36,147.31,53.61241101]
[1751706552740,5.06172959,147.35,147.31,53.61241101]
[1751706552950,5.06172959,147.34,147.33,26.0]
[1751706553645,5.06172959,147.34,147.33,32.78748387]
[1751706559555,5.06172959,147.34,147.32,6.78780282]
[1751706559731,5.06172959,147.33,147.32,6.78780282]
[1751706561153,5.06172959,147.33,147.32,26.0]
[1751706561862,8.9147217,147.33,147.29,6.78914479]
[1751706562038,8.9147217,147.32,147.29,6.78914479]
[1751706562239,5.06172959,147.31,147.29,6.78914479]
[1751706562440,5.06172959,147.3,147.29,6.78914479]
[1751706566137,5.06172959,147.3,147.29,26.0]
[1751706566340,5.06172959,147.3,147.28,6.84970484]
[1751706566565,3.85299211,147.31,147.28,6.84970484]
[1751706566857,5.04935663,147.3,147.28,6.84970484]
[1751706567067,5.04935663,147.29,147.28,32.84970484]
[1751706567275,5.04935663,147.29,147.28,0.06]
[1751706567765,8.90234874,147.29,147.28,0.06]
[1751706570256,3.85299211,147.29,147.28,0.06]
[1751706570437,8.90234874,147.29,147.28,0.06]
[1751706570638,3.85299211,147.29,147.28,0.06]
[1751706570934,8.90234874,147.29,147.28,0.06]
[1751706571140,3.85299211,147.29,147.28,0.06]
[1751706571351,5.04935663,147.29,147.28,0.06]
[1751706572160,9.55299211,147.3,147.28,0.06]
[1751706572161,14.60234874,147.3,147.28,0.06]
[1751706572950,5.04935663,147.29,147.28,0.06]
[1751706573139,14.60234874,147.3,147.28,0.06]
[1751706575460,9.55299211,147.3,147.28,0.06]
[1751706578062,5.7,147.3,147.28,0.06]
[1751706578261,9.55299211,147.3,147.28,0.06]
[1751706579372,3.85299211,147.29,147.28,0.06]
[1751706582352,14.58639838,147.3,147.28,0.06]
[1751706582680,9.55299211,147.3,147.28,0.06]
[1751706582862,5.7,147.3,147.28,0.06]
[1751706583154,9.55299211,147.3,147.28,0.06]
[1751706584050,5.7,147.3,147.28,0.06]
[1751706584249,5.7,147.3,147.28,3.91299211]
[1751706585767,5.7,147.3,147.28,0.06]
[1751706589481,8.88635626,147.32,147.28,0.06]
[1751706589979,8.88635626,147.32,147.28,3.91299211]
[1751706590159,5.03336415,147.32,147.29,6.78932717]
[1751706593991,5.03336415,147.32,147.29,10.64231928]
[1751706595196,9.55299211,147.33,147.29,10.64231928]
[1751706595379,5.04101245,147.32,147.29,10.64231928]
[1751706595582,9.55299211,147.33,147.29,10.64231928]
[1751706595778,5.04101245,147.32,147.29,10.64231928]
[1751706596092,5.7,147.33,147.29,10.64231928]
[1751706596396,5.04406135,147.32,147.29,10.64231928]
[1751706596588,5.04406135,147.31,147.29,10.64231928]
[1751706596893,5.04406135,147.32,147.3,3.85299211]
[1751706597084,5.0445059,147.33,147.3,3.85299211]
[1751706597282,5.0445059,147.32,147.31,6.7884054]
[1751706597471,5.0445059,147.33,147.31,6.7884054]
[1751706597794,5.0445059,147.32,147.31,6.7884054]
[1751706597974,5.0445059,147.33,147.31,6.7884054]
[1751706598173,5.0445059,147.32,147.31,6.7884054]
[1751706598395,5.0445059,147.33,147.31,6.7884054]
[1751706598597,5.0445059,147.32,147.31,6.7884054]
[1751706598782,5.0445059,147.33,147.31,6.7884054]
[1751706599097,5.0445059,147.32,147.31,6.7884054]
[1751706601694,9.55299211,147.35,147.31,6.7884054]
[1751706602001,5.05039786,147.34,147.31,6.7884054]
[1751706602180,5.05039786,147.33,147.31,6.7884054]
[1751706602478,5.05039786,147.32,147.31,6.7884054]
[1751706606008,5.05039786,147.32,147.31,10.64139751]
[1751706610701,9.55299211,147.35,147.3,3.85299211]
[1751706610902,5.05561543,147.34,147.3,3.85299211]
[1751706611100,5.05561543,147.33,147.3,3.85299211]
[1751706611301,9.55299211,147.35,147.3,3.85299211]
[1751706611601,5.05498198,147.34,147.3,3.85299211]
[1751706611907,5.05498198,147.33,147.31,6.7884054]
[1751706612109,9.55299211,147.35,147.31,6.7884054]
[1751706612415,5.05479764,147.34,147.31,6.7884054]
[1751706612606,5.05479764,147.33,147.31,6.7884054]
[1751706612811,9.55299211,147.35,147.31,6.7884054]
[1751706613004,5.05488017,147.34,147.31,6.7884054]
[1751706613195,5.05488017,147.33,147.31,6.7884054]
[1751706613506,9.55299211,147.35,147.31,6.7884054]
[1751706613719,8.90755399,147.34,147.29,27.61544948]
[1751706613913,8.90755399,147.33,147.29,27.61544948]
[1751706614088,5.05456188,147.32,147.29,27.61544948]
[1751706614289,3.85299211,147.33,147.29,23.76245737]
[1751706614490,5.05424801,147.32,147.29,27.61544948]
[1751706614708,3.85299211,147.33,147.29,27.61544948]
[1751706614899,5.05424801,147.32,147.29,27.61544948]
[1751706615100,3.85299211,147.33,147.29,27.61544948]
[1751706615424,5.05433996,147.32,147.29,27.61544948]
[1751706615722,3.85299211,147.33,147.29,27.61544948]
[1751706616021,5.05423319,147.32,147.29,27.61544948]
[1751706616315,3.85299211,147.33,147.29,27.61544948]
[1751706616520,5.0541654,147.32,147.29,27.61544948]
[1751706616727,3.85299211,147.33,147.29,27.61544948]
[1751706616925,5.0541654,147.32,147.29,27.61544948]
[1751706617094,3.85299211,147.33,147.29,27.61544948]
[1751706617294,5.05432292,147.32,147.29,27.61544948]
[1751706617507,3.85299211,147.33,147.29,27.61544948]
[1751706617817,5.05437554,147.32,147.29,10.64231928]
[1751706617999,3.85299211,147.32,147.29,6.78932717]
[1751706618202,8.90637892,147.31,147.29,6.78932717]
[1751706618503,5.05338681,147.3,147.29,6.78932717]
[1751706618815,5.05338681,147.3,147.28,6.84965828]
[1751706618996,3.85299211,147.31,147.28,6.84965828]
[1751706619200,5.05441416,147.3,147.28,6.84965828]
[1751706619498,3.85299211,147.31,147.28,6.84965828]
[1751706619697,5.05483743,147.3,147.28,6.84965828]
[1751706619894,3.85299211,147.31,147.28,6.84965828]
[1751706620088,5.05483743,147.3,147.28,6.84965828]
[1751706620288,3.85299211,147.31,147.28,6.84965828]
[1751706620600,5.05561925,147.3,147.28,6.84965828]
[1751706620795,5.05561925,147.29,147.28,6.84965828]
[1751706629121,5.05561925,147.29,147.28,0.06]
[1751706630126,5.05561925,147.29,147.27,6.79006763]
[1751706630419,5.05561925,147.28,147.27,10.64305974]
[1751706634526,3.85299211,147.31,147.27,10.64305974]
[1751706634824,5.05696069,147.3,147.27,10.64305974]
[1751706635013,5.05696069,147.29,147.27,10.64305974]
[1751706635326,3.85299211,147.31,147.27,10.64305974]
[1751706635531,5.05682071,147.3,147.27,10.64305974]
[1751706635707,5.05682071,147.29,147.27,10.64305974]
[1751706635908,15.86598944,147.32,147.28,3.85299211]
[1751706636118,5.05682408,147.31,147.28,10.64255175]
[1751706636322,5.05682408,147.3,147.28,6.78955964]
[1751706636509,5.05682408,147.29,147.28,6.78955964]
[1751706639711,5.05682408,147.29,147.27,10.64309622]
[1751706639917,3.85299211,147.31,147.27,32.79010411]
[1751706640227,8.90839991,147.3,147.27,32.79010411]
[1751706640427,5.0554078,147.29,147.27,32.79010411]
[1751706640624,3.85299211,147.3,147.27,32.79010411]
[1751706640816,5.05495317,147.29,147.27,32.79010411]
[1751706641006,3.85299211,147.3,147.27,32.79010411]
[1751706641206,5.05495317,147.29,147.27,32.79010411]
[1751706641506,3.85299211,147.3,147.27,32.79010411]
[1751706641706,5.05483913,147.29,147.27,32.79010411]
[1751706641904,3.85299211,147.3,147.27,32.79010411]
[1751706642126,5.05484078,147.29,147.27,32.79010411]
[1751706642327,3.85299211,147.3,147.27,32.79010411]
[1751706642521,5.05484087,147.29,147.27,32.79010411]
[1751706642723,3.85299211,147.3,147.27,32.79010411]
[1751706642928,5.05484087,147.29,147.27,32.79010411]
[1751706643232,3.85299211,147.3,147.27,32.79010411]
[1751706643434,5.05477613,147.29,147.27,32.79010411]
[1751706643633,3.85299211,147.3,147.27,32.79010411]
[1751706643813,5.05607622,147.29,147.27,32.79010411]
[1751706644014,3.85299211,147.3,147.27,32.79010411]
[1751706644216,5.05709342,147.29,147.27,32.79010411]
[1751706644429,3.85299211,147.3,147.27,32.79010411]
[1751706644617,5.05742155,147.29,147.27,32.79010411]
[1751706644830,3.85299211,147.3,147.27,32.79010411]
[1751706645023,5.05742688,147.29,147.27,32.79010411]
[1751706645337,3.85299211,147.3,147.27,32.79010411]
[1751706645524,5.05752478,147.29,147.27,32.79010411]
[1751706645833,3.85299211,147.3,147.27,32.79010411]
[1751706646034,5.05752478,147.29,147.27,32.79010411]
[1751706646335,3.85299211,147.3,147.27,32.79010411]
[1751706646535,5.05761497,147.29,147.27,32.79010411]
[1751706646735,3.85299211,147.3,147.27,32.79010411]
[1751706646936,5.05758607,147.29,147.27,32.79010411]
[1751706647230,3.85299211,147.3,147.27,32.79010411]
[1751706647411,5.05767601,147.29,147.27,32.79010411]
[1751706647612,3.85299211,147.3,147.27,32.79010411]
[1751706647812,5.05767766,147.29,147.27,32.79010411]
[1751706648038,3.85299211,147.3,147.27,32.79010411]
[1751706648237,5.05768326,147.29,147.27,32.79010411]
[1751706648538,3.85299211,147.31,147.27,32.79010411]
[1751706648738,5.05806628,147.3,147.27,32.79010411]
[1751706648933,5.05806628,147.29,147.27,32.79010411]
[1751706649238,3.85299211,147.31,147.27,32.79010411]
[1751706649446,5.05806958,147.3,147.27,32.79010411]
[1751706649736,5.05806958,147.29,147.27,32.79010411]
[1751706649941,3.85299211,147.31,147.27,32.79010411]
[1751706650123,5.05824064,147.3,147.27,32.79010411]
[1751706650325,5.05824064,147.29,147.27,32.79010411]
[1751706650513,3.85299211,147.31,147.27,32.79010411]
[1751706650714,5.05831956,147.3,147.27,32.79010411]
[1751706650925,5.05831956,147.29,147.27,32.79010411]
[1751706651217,3.85299211,147.31,147.27,32.79010411]
[1751706651417,5.05846585,147.3,147.27,32.79010411]
[1751706651711,5.05846585,147.29,147.27,32.79010411]
[1751706651915,3.85299211,147.31,147.27,32.79010411]
[1751706652117,5.05863159,147.3,147.27,32.79010411]
[1751706652338,5.05863159,147.29,147.27,36.64309622]
[1751706652514,9.55299211,147.32,147.27,36.64309622]
[1751706652716,5.05895731,147.31,147.27,36.64309622]
[1751706652945,5.05895731,147.3,147.27,36.64309622]
[1751706653243,5.05895731,147.29,147.27,36.64309622]
[1751706653547,9.55299211,147.32,147.27,36.64309622]
[1751706653839,5.05932196,147.31,147.27,36.64309622]
[1751706654053,5.05932196,147.3,147.27,36.64309622]
[1751706654231,5.05932196,147.29,147.27,36.64309622]
[1751706654431,9.55299211,147.32,147.27,36.64309622]
[1751706654642,5.05993136,147.31,147.27,36.64309622]
[1751706654945,5.05993136,147.3,147.27,32.79010411]
[1751706655130,5.05993136,147.29,147.27,36.64309622]
[1751706655447,3.85299211,147.31,147.27,36.64309622]
[1751706655630,5.06058868,147.3,147.27,36.64309622]
[1751706655822,5.06058868,147.29,147.27,36.64309622]
[1751706656146,9.55299211,147.32,147.27,36.64309622]
[1751706656370,5.06059201,147.31,147.28,3.85299211]
[1751706656654,5.06059201,147.3,147.28,3.85299211]
[1751706656950,5.06059201,147.29,147.28,3.85299211]
[1751706657448,5.06059201,147.29,147.28,10.64278026]
[1751706664158,5.06059201,147.29,147.28,6.78978815]
[1751706664364,5.06059201,147.29,147.28,10.64278026]
[1751706665759,5.06059201,147.29,147.28,6.78978815]
[1751706666058,5.06059201,147.29,147.28,10.64278026]
[1751706668970,5.06059201,147.29,147.28,6.78978815]
[1751706669264,5.06059201,147.29,147.28,10.64278026]
[1751706671468,5.06059201,147.29,147.28,6.78978815]
[1751706671650,5.06059201,147.29,147.28,10.64278026]
[1751706671848,5.06059201,147.29,147.28,6.78978815]
[1751706675854,5.06059201,147.29,147.28,10.64278026]
[1751706677473,6.31299733,147.33,147.28,27.61725065]
[1751706677673,5.06915547,147.32,147.3,3.85299211]
[1751706677846,5.06915547,147.31,147.3,36.64185836]
[1751706681458,15.86598944,147.35,147.3,36.64185836]
[1751706681682,5.06448037,147.34,147.3,36.64185836]
[1751706681856,5.06448037,147.33,147.3,36.64185836]
[1751706682061,5.06448037,147.32,147.3,36.64185836]
[1751706682278,15.86598944,147.35,147.3,36.64185836]
[1751706682506,5.06350272,147.34,147.3,36.64185836]
[1751706682651,5.06350272,147.33,147.3,36.64185836]
[1751706682973,5.06350272,147.32,147.3,36.64185836]
[1751706683169,15.86598944,147.35,147.3,36.64185836]
[1751706683367,5.06383521,147.34,147.3,36.64185836]
[1751706683561,5.06383521,147.33,147.3,36.64185836]
[1751706683873,5.06383521,147.32,147.3,36.64185836]
[1751706684067,9.55299211,147.35,147.3,36.64185836]
[1751706684268,5.06304426,147.34,147.3,36.64185836]
[1751706684469,5.06304426,147.33,147.32,26.0]
[1751706685381,5.06304426,147.33,147.32,6.78794461]
[1751706688878,5.06304426,147.33,147.32,10.64093672]
[1751706689082,5.06304426,147.33,147.32,36.64093672]
[1751706705398,5.06304426,147.33,147.32,32.78794461]
[1751706705600,5.06304426,147.33,147.32,36.64093672]
[1751706714404,5.06304426,147.33,147.32,26.0]
[1751706714582,5.06304426,147.33,147.32,32.78794461]
[1751706715383,5.06304426,147.33,147.32,36.64093672]
[1751706715998,5.06131204,147.36,147.32,53.61079824]
[1751706716179,5.06131204,147.35,147.34,29.85299211]
[1751706716380,5.06131204,147.35,147.34,36.64001532]
[1751706723386,6.31299733,147.39,147.34,53.60757334]
[1751706723592,5.06469948,147.38,147.37,3.85299211]
[1751706724796,5.06469948,147.38,147.37,6.78564158]
[1751706726717,5.06469948,147.38,147.37,10.63863369]
[1751706729526,5.06469948,147.38,147.37,6.78564158]
[1751706735029,5.06469948,147.38,147.36,6.78610206]
[1751706735205,5.06469948,147.37,147.36,6.78610206]
[1751706743938,3.85299211,147.4,147.36,6.78610206]
[1751706744114,5.05623091,147.39,147.36,6.78610206]
[1751706744314,5.05623091,147.38,147.36,6.78610206]
[1751706744514,3.85299211,147.4,147.36,6.78610206]
[1751706744814,5.05628862,147.39,147.36,6.78610206]
[1751706745015,5.05628862,147.38,147.36,6.78610206]
[1751706745235,3.85299211,147.4,147.36,6.78610206]
[1751706745534,5.05628862,147.39,147.36,6.78610206]
[1751706745734,5.05628862,147.38,147.36,6.78610206]
[1751706745937,3.85299211,147.4,147.36,6.78610206]
[1751706746236,5.05572905,147.39,147.36,6.78610206]
[1751706746539,5.05572905,147.38,147.36,6.78610206]
[1751706746832,3.85299211,147.4,147.36,6.78610206]
[1751706747034,5.05532798,147.39,147.36,6.78610206]
[1751706747235,3.85299211,147.4,147.36,6.78610206]
[1751706747236,5.05532798,147.38,147.36,6.78610206]
[1751706747423,5.05575859,147.37,147.36,6.78610206]
[1751706751046,5.05575859,147.37,147.35,6.7865626]
[1751706751346,3.85299211,147.38,147.37,26.0]
[1751706751646,5.06019059,147.38,147.37,26.0]
[1751706753029,8.9131827,147.38,147.37,26.0]
[1751706755147,8.91505591,147.38,147.37,26.0]
[1751706755327,5.0620638,147.38,147.37,26.0]
[1751706758016,5.0620638,147.38,147.36,6.78570831]
[1751706758235,5.0620638,147.37,147.36,6.78570831]
[1751706758431,5.0620638,147.37,147.35,6.7865626]
[1751706758637,5.0620638,147.36,147.35,6.7865626]
[1751706769157,3.85299211,147.38,147.35,6.7865626]
[1751706769342,5.0740787,147.37,147.35,6.7865626]
[1751706769540,5.0740787,147.36,147.35,6.7865626]
[1751706776759,3.85299211,147.38,147.35,6.7865626]
[1751706777056,5.07505453,147.37,147.35,6.7865626]
[1751706777260,5.07505453,147.36,147.35,6.7865626]
[1751706783452,8.92804664,147.36,147.32,6.78794461]
[1751706783760,3.85299211,147.34,147.32,6.78794461]
[1751706784063,5.07505453,147.33,147.3,6.78886625]
[1751706784360,5.07505453,147.32,147.3,6.78886625]
[1751706784568,3.85299211,147.34,147.33,26.0]
[1751706784863,8.92376044,147.34,147.33,26.0]
[1751706785437,5.07076833,147.34,147.33,6.78748387]
[1751706791441,5.07076833,147.34,147.33,32.78748387]
[1751706791969,8.92376044,147.34,147.3,46.82406561]
[1751706792142,5.07076833,147.33,147.32,26.0]
[1751706793264,5.07076833,147.33,147.32,32.78794461]
[1751706795162,3.85299211,147.35,147.32,32.78794461]
[1751706795365,5.06245872,147.34,147.32,32.78794461]
[1751706795667,3.85299211,147.35,147.32,32.78794461]
[1751706795970,5.06276156,147.34,147.32,32.78794461]
[1751706796173,3.85299211,147.35,147.32,32.78794461]
[1751706796357,5.06276178,147.34,147.32,32.78794461]
[1751706796557,3.85299211,147.35,147.32,32.78794461]
[1751706796753,5.06250041,147.34,147.32,32.78794461]
[1751706796960,3.85299211,147.35,147.32,32.78794461]
[1751706797253,5.06356687,147.34,147.32,32.78794461]
[1751706797459,3.85299211,147.35,147.32,32.78794461]
[1751706797765,5.06334808,147.34,147.32,32.78794461]
[1751706797972,3.85299211,147.35,147.32,32.78794461]
[1751706798275,5.06335454,147.34,147.32,32.78794461]
[1751706798472,3.85299211,147.35,147.32,32.78794461]
[1751706798674,5.06317574,147.34,147.32,32.78794461]
[1751706798974,3.85299211,147.35,147.32,32.78794461]
[1751706799146,5.06317273,147.34,147.32,32.78794461]
[1751706799345,3.85299211,147.35,147.32,32.78794461]
[1751706799545,5.06310911,147.34,147.32,32.78794461]
[1751706799768,3.85299211,147.35,147.32,32.78794461]
[1751706799970,5.0630273,147.34,147.32,32.78794461]
[1751706800152,3.85299211,147.35,147.32,32.78794461]
[1751706800357,5.06303004,147.34,147.32,32.78794461]
[1751706800572,3.85299211,147.35,147.32,32.78794461]
[1751706800876,5.06291928,147.34,147.32,32.78794461]
[1751706801170,3.85299211,147.35,147.32,32.78794461]
[1751706801349,5.06292727,147.34,147.32,32.78794461]
[1751706801551,3.85299211,147.35,147.32,32.78794461]
[1751706801767,5.06277109,147.34,147.32,32.78794461]
[1751706801970,3.85299211,147.35,147.32,32.78794461]
[1751706802169,5.06276944,147.34,147.32,32.78794461]
[1751706802370,3.85299211,147.35,147.32,32.78794461]
[1751706802606,5.0626205,147.34,147.32,32.78794461]
[1751706802788,3.85299211,147.35,147.32,32.78794461]
[1751706803078,5.06262215,147.34,147.32,32.78794461]
[1751706803268,3.85299211,147.35,147.32,32.78794461]
[1751706803471,5.0626205,147.34,147.32,32.78794461]
[1751706803663,3.85299211,147.35,147.32,32.78794461]
[1751706803861,5.06250669,147.34,147.32,32.78794461]
[1751706804064,3.85299211,147.35,147.32,32.78794461]
[1751706804368,5.06251578,147.34,147.32,32.78794461]
[1751706804672,3.85299211,147.35,147.32,32.78794461]
[1751706804989,5.06242723,147.34,147.32,32.78794461]
[1751706805275,3.85299211,147.35,147.32,32.78794461]
[1751706805452,5.06245603,147.34,147.32,32.78794461]
[1751706805652,3.85299211,147.35,147.32,32.78794461]
[1751706805955,5.0624574,147.34,147.32,32.78794461]
[1751706806171,3.85299211,147.35,147.32,32.78794461]
[1751706806351,5.06245905,147.34,147.33,3.85299211]
[1751706806554,5.06245905,147.36,147.33,3.85299211]
[1751706806767,3.85299211,147.37,147.33,3.85299211]
[1751706807073,5.06330322,147.36,147.32,53.61079824]
[1751706807277,3.85299211,147.37,147.32,53.61079824]
[1751706807579,5.0632999,147.36,147.32,53.61079824]
[1751706807780,5.0632999,147.35,147.32,53.61079824]
[1751706807971,3.85299211,147.36,147.32,53.61079824]
[1751706808271,5.06354794,147.35,147.32,53.61079824]
[1751706808474,3.85299211,147.36,147.32,53.61079824]
[1751706808677,5.06566512,147.35,147.32,53.61079824]
[1751706808874,3.85299211,147.36,147.32,53.61079824]
[1751706809065,5.06575369,147.35,147.32,53.61079824]
[1751706809375,3.85299211,147.36,147.32,53.61079824]
[1751706809575,5.06599545,147.35,147.32,53.61079824]
[1751706809780,6.34381816,147.39,147.32,53.61079824]
[1751706809984,3.85299211,147.36,147.32,53.61079824]
[1751706810352,3.85299211,147.37,147.32,53.61079824]
[1751706810657,5.06645663,147.36,147.32,53.61079824]
[1751706810858,3.85299211,147.37,147.32,53.61079824]
[1751706811073,5.06645527,147.36,147.32,53.61079824]
[1751706811275,3.85299211,147.37,147.32,53.61079824]
[1751706811458,5.06645829,147.36,147.32,53.61079824]
[1751706811659,3.85299211,147.37,147.32,53.61079824]
[1751706811859,5.06670044,147.36,147.32,53.61079824]
[1751706812075,3.85299211,147.37,147.32,53.61079824]
[1751706812274,5.06670044,147.36,147.32,53.61079824]
[1751706812482,3.85299211,147.37,147.32,53.61079824]
[1751706812777,5.06695396,147.36,147.32,53.61079824]
[1751706812983,3.85299211,147.37,147.32,53.61079824]
[1751706813165,5.06508606,147.36,147.34,6.78702321]
[1751706813480,3.85299211,147.37,147.34,6.78702321]
[1751706813782,5.06535899,147.36,147.34,6.78702321]
[1751706814082,3.85299211,147.38,147.34,6.78702321]
[1751706814286,5.06536562,147.37,147.34,6.78702321]
[1751706814467,5.06536562,147.36,147.34,6.78702321]
[1751706814669,3.85299211,147.38,147.34,6.78702321]
[1751706814873,5.06564355,147.37,147.34,6.78702321]
[1751706815180,3.85299211,147.38,147.34,6.78702321]
[1751706815181,5.06564355,147.36,147.34,6.78702321]
[1751706815380,3.85299211,147.37,147.34,6.78702321]
[1751706815575,5.06544371,147.36,147.34,6.78702321]
[1751706815775,5.06544371,147.35,147.34,6.78702321]
[1751706816269,5.06544371,147.35,147.33,6.78748387]
[1751706816469,3.85299211,147.37,147.33,6.78748387]
[1751706816670,5.06594382,147.36,147.33,6.78748387]
[1751706816873,5.06594382,147.35,147.33,6.78748387]
[1751706817077,3.85299211,147.37,147.33,6.78748387]
[1751706817280,5.06594508,147.36,147.33,6.78748387]
[1751706817464,5.06594508,147.35,147.33,6.78748387]
[1751706817665,3.85299211,147.37,147.33,6.78748387]
[1751706817866,5.06630735,147.36,147.33,10.64047598]
[1751706818177,5.06630735,147.35,147.33,10.64047598]
[1751706818484,3.85299211,147.37,147.33,10.64047598]
[1751706818686,5.06669536,147.36,147.33,10.64047598]
[1751706818873,5.06669536,147.35,147.33,6.78748387]
[1751706819196,3.85299211,147.35,147.33,6.78748387]
[1751706820466,5.06752439,147.34,147.33,6.78748387]
[1751706850222,15.26433466,147.34,147.26,6.0518]
[1751706850435,3.85299211,147.3,147.26,6.0518]
[1751706850638,12.04381816,147.34,147.26,9.90479211]
[1751706850639,5.06752439,147.29,147.26,9.90479211]
[1751706850816,3.85299211,147.31,147.26,9.90479211]
[1751706851125,5.07141216,147.3,147.27,6.7902492]
[1751706851327,5.07141216,147.29,147.27,6.7902492]
[1751706851499,3.85299211,147.31,147.27,6.7902492]
[1751706851701,5.06780523,147.3,147.27,6.7902492]
[1751706851927,5.06780523,147.29,147.27,6.7902492]
[1751706852123,3.85299211,147.31,147.27,6.7902492]
[1751706852422,5.0653336,147.3,147.27,6.7902492]
[1751706852606,5.0653336,147.29,147.27,6.7902492]
[1751706852801,3.85299211,147.31,147.27,6.7902492]
[1751706853002,5.06534293,147.3,147.27,6.7902492]
[1751706853202,3.85299211,147.31,147.27,6.7902492]
[1751706853404,5.06343028,147.3,147.27,6.7902492]
[1751706853612,3.85299211,147.31,147.27,6.7902492]
[1751706853809,5.06333204,147.3,147.27,6.7902492]
[1751706854011,3.85299211,147.31,147.27,6.7902492]
[1751706854213,8.9147722,147.3,147.27,6.7902492]
[1751706854423,3.85299211,147.3,147.27,6.7902492]
[1751706856923,3.85299211,147.31,147.27,10.64324131]
[1751706857238,5.05891871,147.3,147.27,6.7902492]
[1751706857433,5.05891871,147.3,147.27,10.64324131]
[1751706857917,5.05891871,147.3,147.27,6.7902492]
[1751706858116,5.05891871,147.3,147.27,10.64324131]
[1751706860158,3.85299211,147.31,147.27,10.64324131]
[1751706861609,3.85299211,147.32,147.28,3.85299211]
[1751706861840,5.05511877,147.31,147.28,3.85299211]
[1751706862909,5.05511877,147.31,147.29,10.64231928]
[1751706863121,5.05511877,147.32,147.29,10.64231928]
[1751706866761,3.85299211,147.31,147.29,26.0]
[1751706868140,8.90685873,147.31,147.29,26.0]
[1751706868343,3.85299211,147.31,147.29,26.0]
[1751706868640,8.90685873,147.31,147.29,26.0]
[1751706868840,3.85299211,147.31,147.29,26.0]
[1751706869034,8.90685873,147.31,147.29,26.0]
[1751706869236,3.85299211,147.31,147.29,26.0]
[1751706869436,8.90685873,147.31,147.29,26.0]
[1751706869649,3.85299211,147.31,147.29,26.0]
[1751706869838,8.90685873,147.31,147.29,26.0]
[1751706870039,3.85299211,147.31,147.29,26.0]
[1751706870234,8.90685873,147.31,147.29,26.0]
[1751706870456,3.85299211,147.31,147.29,26.0]
[1751706870647,8.90685873,147.31,147.29,26.0]
[1751706870849,3.85299211,147.31,147.29,26.0]
[1751706871052,8.90685873,147.31,147.29,26.0]